fUST/lending_fUST_20250310
["ID","MTS","AMOUNT","RATE_DAILY","PERIOD"]
[355789208,1741561891104,-1227.24221615,0.00061095,120]
[355789209,1741561891115,-820.44889922,0.00061095,120]
[355789210,1741561891125,-522.55999995,0.00061095,120]
[355789211,1741561891135,-776.11265646,0.00061095,120]
[355789212,1741561891150,-540.91165914,0.00061095,120]
[355789213,1741561891160,-573.05459632,0.00061095,120]
[355789214,1741561891170,-1783.5651249,0.00061095,60]
[355789215,1741561891182,-643.8,0.00061095,120]
[355789216,1741561891191,-502.10890622,0.00061095,120]
[355789217,1741561891201,-2622.35984703,0.00061095,120]
[355789218,1741561891211,-1265.26520953,0.00061095,120]
[355789219,1741561891221,-185.91396594,0.00061095,120]
[355789220,1741561891230,-742.7939171,0.00061095,120]
[355789221,1741561891240,-573.68420022,0.00061095,120]
[355789222,1741561891250,-588.93672112,0.00061192,120]
[355789223,1741561891260,-150.0,0.00061732,15]
[355789224,1741561891270,-1341.98,0.00061917,120]
[355789225,1741561891280,-500.0,0.0006195,120]
[355789226,1741561891290,-2863.23,0.00062,30]
[355789227,1741561891300,-2989.0,0.00062,120]
[355789228,1741561891310,-298.0,0.00062,120]
[355789229,1741561891319,-349.0,0.00062,120]
[355789230,1741561891328,-606.0,0.00062,120]
[355789231,1741561891338,-467.035127,0.00062495,2]
[355789232,1741561891348,-163.0,0.000625,120]
[355789233,1741561891358,-162.0,0.000625,120]
[355789234,1741561891368,-1341.98,0.00063013,120]
[355789235,1741561891377,-156.41820258,0.00064,120]
[355789236,1741561891387,-20000.0,0.00064,30]
[355789237,1741561891400,-2989.0,0.00064,120]
[355789238,1741561891410,-298.0,0.00064,120]
[355789239,1741561891420,-349.0,0.00064,120]
[355789240,1741561891429,-606.0,0.00064,120]
[355789241,1741561891438,-3849.9,0.000641,7]
[355789242,1741561891448,-1341.98,0.00064109,120]
[355789243,1741561891458,-1656.94264617,0.0006492,120]
[355789244,1741561891468,-500000.0,0.00065,120]
[355789245,1741561891477,-2000.0,0.00065,120]
[355789246,1741561891487,-169.0,0.00065,120]
[355789247,1741561891498,-163.0,0.00065,120]
[355789248,1741561891518,-162.0,0.00065,120]
[355789249,1741561891527,-162.0,0.00065,120]
[355789250,1741561891537,-161.0,0.00065,120]
[355789251,1741561891547,-669.77,0.00065,30]
[355789252,1741561891557,-500.0,0.00065048,120]
[355789253,1741561891567,-1341.98,0.00065205,120]
[355789254,1741561891577,-1500.0,0.00065753,15]
[355789255,1741561891586,-2989.0,0.00066,120]
[355789256,1741561891597,-298.0,0.00066,120]
[355789257,1741561891607,-349.0,0.00066,120]
[355789258,1741561891617,-606.0,0.00066,120]
[355789259,1741561891626,-1341.98,0.00066301,120]
[355789260,1741561891637,-5000.0,0.00066474,30]
[355789261,1741561891650,-181.8,0.00067,30]
[355789262,1741561891660,-401.19,0.00067,30]
[355789263,1741561891670,-18327.77,0.00067,30]
[355789264,1741561891680,-150.0,0.00067211,15]
[355789265,1741561891689,-1341.98,0.00067397,120]
[355789266,1741561891699,-163.0,0.000675,120]
[355789267,1741561891709,-162.0,0.000675,120]
[355789268,1741561891718,-467.035127,0.00067816,120]
[355789269,1741561891727,-100000.0,0.00068,120]
[355789270,1741561891737,-2989.0,0.00068,120]
[355789271,1741561891747,-298.0,0.00068,120]
[355789272,1741561891757,-349.0,0.00068,120]
[355789273,1741561891767,-606.0,0.00068,120]
[355789274,1741561891777,-326.92,0.00068,30]
[355789275,1741561891786,-730.78,0.00068,30]
[355789276,1741561891796,-500.0,0.000683,120]
[355789277,1741561891806,-1341.98,0.00068493,120]
[355789278,1741561891815,-666.0,0.00068493,120]
[355789279,1741561891825,-1730.74388063,0.000685,120]
[355789280,1741561891836,-1000.0,0.000688,90]
[355789281,1741561891850,-1000.0,0.000688,90]
[355789282,1741561891860,-64912.48381456,0.00068989,120]
[355789283,1741561891870,-151.0,0.00068989,120]
[355789284,1741561891879,-298.821662,0.00068989,120]
[355789285,1741561891889,-151.0,0.00068989,120]
[355789286,1741561891900,-3000.0,0.00069,120]
[355789287,1741561891911,-717.94,0.00069,60]
[355789288,1741561891921,-3000.0,0.0006901,120]
[355789289,1741561891931,-3000.0,0.0006902,120]
[355789290,1741561891940,-3000.0,0.0006903,120]
[355789291,1741561891950,-4064.373443,0.0006904,120]
[355789292,1741561891960,-2500.0,0.00069108,15]
[355789293,1741561891972,-2500.0,0.00069108,2]
[355789294,1741561891982,-1341.98,0.00069589,120]
[355789295,1741561891993,-1000.0,0.00069999,120]
[355789296,1741561892003,-2000.0,0.0007,120]
[355789297,1741561892014,-3134.90012511,0.0007,30]
[355789298,1741561892024,-2989.0,0.0007,120]
[355789299,1741561892035,-169.0,0.0007,120]
[355789300,1741561892045,-158.0,0.0007,120]
[355789301,1741561892056,-163.0,0.0007,120]
[355789302,1741561892066,-165.0,0.0007,120]
[355789303,1741561892075,-170.73892655,0.0007,120]
[355789304,1741561892087,-298.0,0.0007,120]
[355789305,1741561892098,-349.0,0.0007,120]
[355789306,1741561892107,-162.0,0.0007,120]
[355789307,1741561892117,-162.0,0.0007,120]
[355789308,1741561892127,-161.0,0.0007,120]
[355789309,1741561892137,-20557.37497531,0.0007,120]
[355789310,1741561892150,-606.0,0.0007,120]
[355789311,1741561892160,-300.0,0.0007,120]
[355789312,1741561892171,-1341.98,0.00070684,120]
[355789313,1741561892180,-2075.15,0.00071232,120]
[355789314,1741561892190,-405.33354857,0.00071233,15]
[355789315,1741561892200,-1342.05970774,0.0007178,120]
[355789316,1741561892211,-1500.0,0.00072421,15]
[355789317,1741561892221,-2500.0,0.00072421,14]
[355789318,1741561892231,-1000.0,0.00072421,15]
[355789319,1741561892241,-2500.0,0.00072421,14]
[355789320,1741561892251,-687.46929018,0.00072421,14]
[355789321,1741561892260,-150.0,0.0007269,15]
[355789322,1741561892270,-467.035127,0.00073136,120]
[355789323,1741561892280,-2801.92,0.0007383,120]
[355789324,1741561892290,-2075.15,0.00073972,120]
[355789325,1741561892299,-10000.0,0.00073973,12]
[355789326,1741561892310,-10000.0,0.000745,120]
[355789327,1741561892320,-5000.0,0.00076402,30]
[355789328,1741561892329,-2075.15,0.00076712,120]
[355789329,1741561892339,-150.0,0.0007817,15]
[355789330,1741561892349,-467.035127,0.00078457,120]
[355789331,1741561892360,-669.77,0.00079,30]
[355789332,1741561892370,-2075.15,0.00079452,120]
[355789333,1741561892380,-242.2913545,0.00079999,30]
[355789334,1741561892389,-300.0,0.0008,120]
[355789335,1741561892400,-670.660785,0.0008,50]
[355789336,1741561892409,-179.1581028,0.0008,120]
[355789337,1741561892419,-500.0,0.0008,120]
[355789338,1741561892429,-2802.65457017,0.0008,120]
[355789339,1741561892439,-1784.930382,0.0008,120]
[355789340,1741561892449,-5000.0,0.00080339,30]
[355789341,1741561892460,-151.0,0.00080384,120]
[355789342,1741561892470,-3208.25,0.000806,14]
[355789343,1741561892480,-717.94,0.00081,60]
[355789344,1741561892490,-5000.0,0.0008197,30]
[355789345,1741561892500,-2075.15,0.00082191,120]
[355789346,1741561892511,-500.0,0.00082191,120]
[355789347,1741561892521,-500.0,0.00082191,120]
[355789348,1741561892531,-500.0,0.00082191,120]
[355789349,1741561892540,-500.0,0.00082191,120]
[355789350,1741561892549,-500.0,0.00082191,120]
[355789351,1741561892559,-500.0,0.00082191,120]
[355789352,1741561892569,-500.0,0.00082191,120]
[355789353,1741561892579,-500.0,0.00082191,120]
[355789354,1741561892588,-500.0,0.00082191,120]
[355789355,1741561892598,-500.0,0.00082191,120]
[355789356,1741561892609,-500.0,0.00082191,120]
[355789357,1741561892620,-500.0,0.00082191,120]
[355789358,1741561892630,-207.21188751,0.00082191,120]
[355789359,1741561892644,-666.0,0.00082191,120]
[355789360,1741561892654,-150.0,0.00083649,15]
[355789361,1741561892664,-467.035127,0.00083778,120]
[355789362,1741561892673,-730.78,0.00084,60]
[355789363,1741561892682,-10000.0,0.000845,120]
[355789364,1741561892693,-2075.15,0.00084931,120]
[355789365,1741561892704,-3000.0,0.00086535,60]
[355789366,1741561892714,-3000.0,0.00086535,2]
[355789367,1741561892723,-181.8,0.00087,60]
[355789368,1741561892733,-401.19,0.00087,60]
[355789369,1741561892744,-2075.15,0.00087671,120]
[355789370,1741561892754,-20000.0,0.00088,60]
[355789371,1741561892765,-1000.0,0.00088399,120]
[355789372,1741561892775,-5000.0,0.00088833,30]
[355789373,1741561892786,-467.035127,0.00089099,120]
[355789374,1741561892797,-150.0,0.00089129,15]
[355789375,1741561892807,-3000.0,0.00089847,14]
[355789376,1741561892818,-3000.0,0.00089847,14]
[355789377,1741561892828,-150.0,0.0009,120]
[355789378,1741561892839,-600.0,0.0009,120]
[355789379,1741561892848,-2000.0,0.0009,120]
[355789380,1741561892858,-500.0,0.0009,120]
[355789381,1741561892868,-18327.77,0.0009,60]
[355789382,1741561892878,-2075.15,0.0009041,120]
[355789383,1741561892888,-5000.0,0.00090637,30]
[355789384,1741561892903,-40000.0,0.0009263,120]
[355789385,1741561892915,-2075.15,0.0009315,120]
[355789386,1741561892926,-5000.0,0.00094355,30]
[355789387,1741561892937,-50036.1063,0.000944,120]
[355789388,1741561892948,-467.035127,0.0009442,120]
[355789389,1741561893087,-150.0,0.00094608,15]
[355789390,1741561893099,-6141.06381301,0.0009488,60]
[355789391,1741561893110,-10000.0,0.000955,120]
[355789392,1741561893121,-2075.15,0.0009589,120]
[355789393,1741561893131,-666.0,0.0009589,120]
[355789394,1741561893145,-7059.91610654,0.000975,30]
[355789395,1741561893157,-500000.0,0.000977,30]
[355789396,1741561893168,-151.0,0.000977,120]
[355789397,1741561893178,-211.018727,0.000977,120]
[355789398,1741561893189,-2075.15,0.0009863,120]
[355789399,1741561893200,-419.0,0.00099207,120]
[355789400,1741561893211,-467.035127,0.00099741,120]
[355789401,1741561893222,-1000.0,0.00099999,120]
[355789402,1741561893234,-1133.80237706,0.001,120]
[355789403,1741561893244,-20000.0,0.001,120]
[355789404,1741561893255,-300.0,0.001,120]
[355789405,1741561893265,-2000.0,0.001,120]
[355789406,1741561893275,-1000.0,0.001,120]
[355789407,1741561893285,-500.0,0.001,120]
[355789408,1741561893295,-500.0,0.001,120]
[355789409,1741561893306,-10000.0,0.001,120]
[355789410,1741561893316,-1000.0,0.001,2]
[355789411,1741561893326,-150.0,0.00100088,15]
[355789412,1741561893336,-2075.15,0.00101369,120]
[355789413,1741561893347,-10463.30008306,0.0010137,12]
[355789414,1741561893357,-2075.15,0.00104109,120]
[355789415,1741561893367,-467.035127,0.00105061,120]
[355789416,1741561893378,-150.0,0.00105567,15]
[355789417,1741561893388,-3500.0,0.00105804,60]
[355789418,1741561893401,-1090.12393875,0.00105804,2]
[355789419,1741561893411,-2075.15,0.00106849,120]
[355789420,1741561893422,-581.95553,0.00109,73]
[355789421,1741561893433,-3500.0,0.00109116,14]
[355789422,1741561893445,-1049.49840494,0.00109116,14]
[355789423,1741561893455,-2075.15,0.00109589,120]
[355789424,1741561893467,-666.0,0.00109589,120]
[355789425,1741561893477,-2000.0,0.0011,120]
[355789426,1741561893488,-467.035127,0.00110382,120]
[355789427,1741561893499,-150.0,0.00111047,15]
[355789428,1741561893510,-2075.15,0.00112328,120]
[355789429,1741561893522,-2075.15,0.00115068,120]
[355789430,1741561893534,-467.035127,0.00115703,120]
[355789431,1741561893544,-151.0,0.00115753,120]
[355789432,1741561893554,-150.0,0.00116526,15]
[355789433,1741561893565,-2075.17135842,0.00117808,120]
[355789434,1741561893574,-200.0,0.0012,120]
[355789435,1741561893585,-467.035127,0.00121024,120]
[355789436,1741561893595,-2566.6,0.001219,30]
[355789437,1741561893606,-150.0,0.00122005,15]
[355789438,1741561893617,-809.60462151,0.00123215,120]
[355789439,1741561893628,-666.0,0.00123287,120]
[355789440,1741561893638,-467.035127,0.00126345,120]
[355789441,1741561893652,-4000.0,0.00126753,60]
[355789442,1741561893662,-150.0,0.00127485,15]
[355789443,1741561893673,-2000.0,0.0013,120]
[355789444,1741561893683,-4000.0,0.00130066,14]
[355789445,1741561893694,-467.035127,0.00131666,120]
[355789446,1741561893704,-150.0,0.00132964,15]
[355789447,1741561893714,-120000.0,0.0013488,120]
[355789448,1741561893724,-666.0,0.00136986,120]
[355789449,1741561893734,-334.868214,0.00136986,120]
[355789450,1741561893745,-467.035127,0.00136987,120]
[355789451,1741561893755,-150.0,0.00138444,15]
[355789452,1741561893765,-426.6,0.0014,120]
[355789453,1741561893775,-150.0,0.00143923,15]
[355789454,1741561893786,-334.868214,0.00144196,120]
[355789455,1741561893796,-10000.0,0.00145,120]
[355789456,1741561893807,-4500.0,0.00149258,120]
[355789457,1741561893817,-150.0,0.00149403,15]
[355789458,1741561893833,-20000.0,0.0015,120]
[355789459,1741561893843,-500.0,0.0015,30]
[355789460,1741561893853,-1360.18728595,0.0015,120]
[355789461,1741561893863,-2000.0,0.0015,120]
[355789462,1741561893872,-512.15,0.0015,120]
[355789463,1741561893882,-181.8,0.0015,60]
[355789464,1741561893894,-401.19,0.0015,60]
[355789465,1741561893905,-666.0,0.00150684,120]
[355789466,1741561893914,-151.0,0.00151123,120]
[355789467,1741561893924,-334.868214,0.00151406,120]
[355789468,1741561893935,-4500.0,0.00152571,14]
[355789469,1741561893945,-157.76961816,0.00154882,15]
[355789470,1741561893955,-1924.95,0.001549,120]
[355789471,1741561893966,-334.868214,0.00158616,120]
[355789472,1741561893976,-1990.34221262,0.00163912,120]
[355789473,1741561893987,-520.5670471,0.00164383,120]
[355789474,1741561893998,-334.868214,0.00165826,120]
[355789475,1741561894013,-9703.67038581,0.00166012,120]
[355789476,1741561894023,-334.868214,0.00173035,120]
[355789477,1741561894034,-5000.0,0.00173218,120]
[355789478,1741561894045,-500000.0,0.001744,30]
[355789479,1741561894056,-5000.0,0.0017653,14]
[355789480,1741561894067,-334.868214,0.00180245,120]
[355789481,1741561894078,-628.35,0.0018496,91]
[355789482,1741561894089,-151.0,0.00186493,120]
[355789483,1741561894100,-334.868214,0.00187455,120]
[355789484,1741561894110,-470.32001517,0.001876,120]
[355789485,1741561894121,-20000.0,0.00189,120]
[355789486,1741561894132,-179697.343345,0.0019224,60]
[355789487,1741561894144,-334.868214,0.00194665,120]
[355789488,1741561894154,-5500.0,0.00198548,120]
[355789489,1741561894164,-700.0,0.002,120]
[355789490,1741561894175,-20000.0,0.002,120]
[355789491,1741561894185,-250.0,0.002,120]
[355789492,1741561894197,-500.0,0.002,120]
[355789493,1741561894208,-2000.0,0.002,120]
[355789494,1741561894218,-4637.0,0.002,120]
[355789495,1741561894229,-15000.0,0.002,120]
[355789496,1741561894240,-5000.0,0.002,120]
[355789497,1741561894251,-10000.0,0.002,120]
[355789498,1741561894262,-2000.0,0.002,120]
[355789499,1741561894272,-500.0,0.002,120]
[355789500,1741561894282,-10000.0,0.002,120]
[355789501,1741561894292,-326.92,0.002,60]
[355789502,1741561894303,-5500.0,0.0020186,14]
[355789503,1741561894313,-334.868214,0.00201875,120]
[355789504,1741561894324,-334.868214,0.00209084,120]
[355789505,1741561894334,-1987.50741142,0.0021,108]
[355789506,1741561894344,-334.868214,0.00216294,120]
[355789507,1741561894354,-809.60462151,0.0022143,120]
[355789508,1741561894363,-151.0,0.00221863,120]
[355789509,1741561894374,-334.868214,0.00223504,120]
[355789510,1741561894384,-6000.0,0.00225179,120]
[355789511,1741561894396,-2569.32324788,0.00226,106]
[355789512,1741561894406,-6000.0,0.00228491,14]
[355789513,1741561894416,-334.868214,0.00230714,120]
[355789514,1741561894427,-10000.0,0.00235,120]
[355789515,1741561894436,-151.0,0.00236,120]
[355789516,1741561894446,-334.868214,0.00237924,120]
[355789517,1741561894455,-120000.0,0.0024233,120]
[355789518,1741561894465,-334.868214,0.00245133,120]
[355789519,1741561894475,-20000.0,0.0025,120]
[355789520,1741561894485,-500.0,0.0025,120]
[355789521,1741561894494,-334.868214,0.00252343,120]
[355789522,1741561894504,-6500.0,0.00253049,120]
[355789523,1741561894514,-6500.0,0.00256362,14]
[355789524,1741561894524,-151.0,0.00257233,120]
[355789525,1741561894533,-334.868214,0.00259553,120]
[355789526,1741561894543,-2400.2198639,0.00266383,79]
[355789527,1741561894552,-334.868214,0.00266763,120]
[355789528,1741561894562,-334.868214,0.00273973,120]
[355789529,1741561894571,-150.0,0.0028,120]
[355789530,1741561894581,-1000.0,0.0028,120]
[355789531,1741561894591,-3257.05631802,0.0028,112]
[355789532,1741561894600,-7000.0,0.00282106,120]
[355789533,1741561894610,-639.6415,0.0028334,73]
[355789534,1741561894619,-7000.0,0.00285419,14]
[355789535,1741561894629,-2337.7367849,0.0028595,120]
[355789536,1741561894638,-151.0,0.00292603,120]
[355789537,1741561894650,-179697.343345,0.00296595,90]
[355789538,1741561894661,-30000.0,0.00297,120]
[355789539,1741561894670,-280.0,0.003,120]
[355789540,1741561894680,-20000.0,0.003,120]
[355789541,1741561894690,-20000.0,0.003,120]
[355789542,1741561894700,-500.0,0.003,30]
[355789543,1741561894710,-2000.0,0.003,120]
[355789544,1741561894720,-500.0,0.003,120]
[355789545,1741561894729,-1038.85145373,0.003,120]
[355789546,1741561894739,-176.83261819,0.003,120]
[355789547,1741561894748,-1600.0,0.003,120]
[355789548,1741561894758,-500.0,0.003,120]
[355789549,1741561894767,-10000.0,0.003,120]
[355789550,1741561894777,-7487.39281544,0.00312304,120]
[355789551,1741561894787,-1000.0,0.003139,120]
[355789552,1741561894796,-443.0,0.0031531,120]
[355789553,1741561894805,-443.0,0.0031531,120]
[355789554,1741561894815,-443.0,0.0031531,120]
[355789555,1741561894825,-443.0,0.0031531,120]
[355789556,1741561894835,-443.0,0.0031531,120]
[355789557,1741561894845,-443.0,0.0031531,120]
[355789558,1741561894855,-443.0,0.0031531,120]
[355789559,1741561894864,-443.0,0.0031531,120]
[355789560,1741561894873,-443.0,0.0031531,120]
[355789561,1741561894883,-443.0,0.0031531,120]
[355789562,1741561894895,-443.0,0.0031531,120]
[355789563,1741561894904,-443.0,0.0031531,120]
[355789564,1741561894914,-443.0,0.0031531,120]
[355789565,1741561894924,-443.0,0.0031531,120]
[355789566,1741561894934,-6385.63458222,0.00315616,14]
[355789567,1741561894944,-443.0,0.00315617,120]
[355789568,1741561894954,-443.0,0.00315617,120]
[355789569,1741561894964,-443.0,0.00315617,120]
[355789570,1741561894974,-443.0,0.00315617,120]
[355789571,1741561894984,-443.0,0.00315617,120]
[355789572,1741561894997,-443.0,0.00315617,120]
[355789573,1741561895006,-443.0,0.00315617,120]
[355789574,1741561895016,-443.0,0.00315617,120]
[355789575,1741561895027,-443.0,0.00315617,120]
[355789576,1741561895037,-443.0,0.00315617,120]
[355789577,1741561895047,-443.0,0.00315617,120]
[355789578,1741561895057,-443.0,0.00315617,120]
[355789579,1741561895067,-443.0,0.00315617,120]
[355789580,1741561895077,-443.0,0.00315926,120]
[355789581,1741561895088,-443.0,0.00315926,120]
[355789582,1741561895098,-443.0,0.00315926,120]
[355789583,1741561895108,-443.0,0.00315926,120]
[355789584,1741561895117,-443.0,0.00315926,120]
[355789585,1741561895127,-443.0,0.00315926,120]
[355789586,1741561895137,-443.0,0.00315926,120]
[355789587,1741561895150,-443.0,0.00315926,120]
[355789588,1741561895160,-443.0,0.00315926,120]
[355789589,1741561895170,-443.0,0.00315926,120]
[355789590,1741561895181,-443.0,0.00315926,120]
[355789591,1741561895191,-443.0,0.00315926,120]
[355789592,1741561895201,-443.0,0.00315926,120]
[355789593,1741561895211,-443.0,0.00315926,120]
[355789594,1741561895221,-443.0,0.00315926,120]
[355789595,1741561895230,-443.0,0.00315926,120]
[355789596,1741561895240,-443.0,0.00315926,120]
[355789597,1741561895250,-443.0,0.00315926,120]
[355789598,1741561895259,-443.0,0.00315926,120]
[355789599,1741561895268,-443.0,0.00315926,120]
[355789600,1741561895278,-410.0,0.00316223,120]
[355789601,1741561895288,-410.0,0.00316223,120]
[355789602,1741561895299,-410.0,0.00316223,120]
[355789603,1741561895309,-410.0,0.00316223,120]
[355789604,1741561895318,-410.0,0.00316223,120]
[355789605,1741561895328,-410.0,0.00316223,120]
[355789606,1741561895338,-410.0,0.00316223,120]
[355789607,1741561895347,-410.0,0.00316223,120]
[355789608,1741561895357,-410.0,0.00316223,120]
[355789609,1741561895367,-410.0,0.00316223,120]
[355789610,1741561895376,-410.0,0.00316223,120]
[355789611,1741561895385,-410.0,0.00316223,120]
[355789612,1741561895398,-410.0,0.00316223,120]
[355789613,1741561895407,-410.0,0.00316223,120]
[355789614,1741561895418,-809.60462151,0.00319643,120]
[355789615,1741561895426,-151.0,0.00327973,120]
[355789616,1741561895436,-574.59453,0.0033,64]
[355789617,1741561895446,-307.97196488,0.00333333,120]
[355789618,1741561895456,-2201.0759946,0.0034,2]
[355789619,1741561895465,-10000.0,0.00345,120]
[355789620,1741561895475,-120000.0,0.0034888,120]
[355789621,1741561895485,-163.69995896,0.00349998,120]
[355789622,1741561895494,-151.0,0.00363342,120]
[355789623,1741561895503,-1974.02770028,0.00373737,120]
[355789624,1741561895513,-500.0,0.003876,120]
[355789625,1741561895522,-20000.0,0.00389,120]
[355789626,1741561895532,-179697.343345,0.00391104,120]
[355789627,1741561895541,-151.0,0.00398712,120]
[355789628,1741561895551,-2026.26,0.0039932,120]
[355789629,1741561895561,-430.75,0.0039949,120]
[355789630,1741561895570,-20000.0,0.004,120]
[355789631,1741561895579,-200.0,0.004,120]
[355789632,1741561895589,-600.0,0.004,120]
[355789633,1741561895599,-5000.0,0.004,120]
[355789634,1741561895608,-2000.0,0.004,120]
[355789635,1741561895618,-193.15051733,0.004,120]
[355789636,1741561895627,-500.0,0.004,120]
[355789637,1741561895637,-10012.651557,0.004,120]
[355789638,1741561895648,-809.60462151,0.00417858,120]
[355789639,1741561895657,-151.0,0.00427014,120]
[355789640,1741561895667,-151.0,0.00434082,120]
[355789641,1741561895677,-14418.5118351,0.00443663,120]
[355789642,1741561895686,-500000.0,0.004444,30]
[355789643,1741561895696,-3757.0,0.0045,120]
[355789644,1741561895705,-100000.0,0.00454,120]
[355789645,1741561895716,-4866.0,0.00455,120]
[355789646,1741561895725,-151.0,0.00469452,120]
[355789647,1741561895735,-2170.06194059,0.0047,120]
[355789648,1741561895745,-4311.24498587,0.0047464,79]
[355789649,1741561895754,-1269.80138899,0.00478,120]
[355789650,1741561895764,-5000.0,0.0048,120]
[355789651,1741561895773,-500.0,0.004876,120]
[355789652,1741561895783,-639.107,0.004897,82]
[355789653,1741561895792,-179697.343345,0.00490943,120]
[355789654,1741561895802,-10000.0,0.00493,30]
[355789655,1741561895811,-698.0,0.004949,120]
[355789656,1741561895821,-1000.0,0.00499999,120]
[355789657,1741561895830,-20000.0,0.005,120]
[355789658,1741561895840,-220.0,0.005,120]
[355789659,1741561895849,-5000.0,0.005,90]
[355789660,1741561895860,-1742.784924,0.005,116]
[355789661,1741561895869,-500.0,0.005,30]
[355789662,1741561895879,-500.0,0.005,120]
[355789663,1741561895888,-1715.342535,0.005,101]
[355789664,1741561895900,-200.0,0.005,60]
[355789665,1741561895909,-2000.0,0.005,120]
[355789666,1741561895919,-2002.07347959,0.005,14]
[355789667,1741561895928,-2465.92398907,0.005,120]
[355789668,1741561895938,-200.0,0.005,120]
[355789669,1741561895948,-2000.0,0.005,120]
[355789670,1741561895958,-4695.66204799,0.005,120]
[355789671,1741561895967,-500.0,0.005,120]
[355789672,1741561895977,-151.0,0.00504822,120]
[355789673,1741561895987,-2400.2198639,0.00506866,120]
[355789674,1741561895997,-1734.27048604,0.0051,120]
[355789675,1741561896174,-1474.55,0.0051157,80]
[355789676,1741561896185,-809.60462151,0.00516071,120]
[355789677,1741561896196,-1000.0,0.00523,120]
[355789678,1741561896206,-7564.08482157,0.0053,120]
[355789679,1741561896216,-151.0,0.00540192,120]
[355789680,1741561896226,-500.0,0.00547945,120]
[355789681,1741561896236,-500.0,0.00547945,120]
[355789682,1741561896246,-500.0,0.00547945,120]
[355789683,1741561896260,-500.0,0.00547945,120]
[355789684,1741561896270,-500.0,0.00547945,120]
[355789685,1741561896280,-500.0,0.00547945,120]
[355789686,1741561896290,-500.0,0.00547945,120]
[355789687,1741561896300,-500.0,0.00547945,120]
[355789688,1741561896309,-500.0,0.00547945,120]
[355789689,1741561896319,-500.0,0.00547945,120]
[355789690,1741561896330,-500.0,0.00547945,120]
[355789691,1741561896339,-500.0,0.00547945,120]
[355789692,1741561896349,-500.0,0.00547945,120]
[355789693,1741561896358,-500.0,0.00547945,120]
[355789694,1741561896368,-500.0,0.00547945,120]
[355789695,1741561896378,-500.0,0.00547945,120]
[355789696,1741561896387,-500.0,0.00547945,120]
[355789697,1741561896399,-500.0,0.00547945,120]
[355789698,1741561896409,-199.83439311,0.00547945,120]
[355789699,1741561896419,-500.0,0.00547945,120]
[355789700,1741561896428,-522.04767321,0.00547945,120]
[355789701,1741561896438,-844797.99429822,0.0055,120]
[355789702,1741561896447,-151.0,0.00575562,120]
[355789703,1741561896457,-10865.48403231,0.0058008,30]
[355789704,1741561896467,-2280.49440837,0.00585,120]
[355789705,1741561896476,-100000.0,0.005888,120]
[355789706,1741561896486,-20000.0,0.00589,120]
[355789707,1741561896495,-24002.65208427,0.00589,30]